{"text_format":"1","workbook":"xlsx","n_sheets":3,"sheets":["Реестр","Основные параметры","ШАБЛОН"],"not_rendered":{"charts":0,"images":0,"macros":1,"external_links":0,"defined_names":1,"comments":1,"pivot_tables":0},"unopened":[],"bounds":{"document_bytes":16777216,"sheet_cells":100000,"rows_first":2000,"rows_last":500,"rows_between":2000,"halvings":0,"cell_chars":16384,"cell_head_chars":4096},"cells_cut":0,"cells_raw":0,"read":"whole","date_system":"1900"}

{"sheet":"Реестр","index":0,"n_rows":0,"n_cols":0,"rows_kept":0,"cut":false,"hidden":false,"merged":[]}

{"sheet":"Основные параметры","index":1,"n_rows":249,"n_cols":16,"rows_kept":249,"cut":false,"hidden":false,"merged":[[28,7,28,8],[27,7,27,8],[0,3,0,6],[5,8,5,9],[6,8,6,9],[4,8,4,9],[3,8,3,9],[1,0,1,7],[2,0,2,7],[11,0,11,7],[15,1,15,7],[16,1,16,7],[19,1,19,7],[17,1,17,7],[18,1,18,7],[14,1,14,7],[0,11,0,12],[0,14,0,15],[40,0,40,6],[41,0,41,6],[20,11,20,12],[20,14,20,15],[25,0,25,6],[20,7,20,8],[21,7,21,8],[22,7,22,8],[24,7,24,8],[23,7,23,8],[25,7,25,8],[20,0,20,6],[13,0,13,7],[26,0,26,6],[44,0,44,6],[39,0,39,6],[27,0,27,6],[10,0,10,7],[3,0,3,7],[5,0,5,7],[7,0,7,7],[9,0,9,7],[4,0,4,7],[6,0,6,7],[8,0,8,7],[12,0,12,7],[21,0,21,6],[22,0,22,6],[23,0,23,6],[24,0,24,6],[47,0,47,6],[28,0,28,6],[38,0,38,6],[45,0,45,6],[46,0,46,6],[29,0,29,6],[30,0,30,6],[31,0,31,6],[32,0,32,6],[33,0,33,6],[34,0,34,6],[35,0,35,6],[36,0,36,6],[37,0,37,6],[42,0,42,6],[43,0,43,6]]}
[null,null,null,"Не забудь разрешить выполнение макроса!!!!!!",null,null,null,null,{"$f":"IF(ISBLANK(J3),\" \",\" от \")","v":" от "},{"$f":"IF(ISBLANK(J2),\" \",\" по \")","v":" по "},null,"Фамилии  и должности отв. лиц исполнителя.",null,null,"Фамилии и должности отв. лиц заказчика."]
["ФИРАМААААА",null,null,null,null,null,null,null,"Работы выполняются по","ПКР-003689-22",null,"Матвеев И.А.","Инженер СК ЦАО",null,"Матвеев И.А.","Инженер СК ЦАО"]
["(объект капитального строительства)",null,null,null,null,null,null,null,"Дата подписания","2022-02-24",null,"Холоднов Г.В.","Заместитель директора",null,"Холоднов Г.В.","Заместитель директора"]
["ГАУ «МосжилНИИпроект» УСК по ЦАО, ОГРН:1197746303204 ИНН: 9710075487 107078, город Москва, Рождественский б-р, д.21, стр. 1",null,null,null,null,null,null,null,"СНиП 2.03.11-85, СНиП 3.04.03-85",null,null,"Зверева И.Л.","Заместитель директора по капитальному строительству",null,"Зверева И.Л.","Заместитель директора по капитальному строительству"]
["(представитель заказчика)",null,null,null,null,null,null,null,"(нормативная док. и правовые акты))",null,null,"Авсарагов","ГЕН ДИР",null,"Авсарагов","ГЕН ДИР"]
["ООО «АС-ТЕХНОГРУПП», ОГРН 1197746599577, ИНН/КПП 7716941996/771601001, 127015, г. Москва, вн. тер. г. муниципальный округ Бутырский, ул. Новодмитровская, д. 5а, стр. 1, эт. 17, офис 1712 а",null,null,null,null,null,null,null,"ООО \"АС_ТЕХ\"",null,null,"Мухамятов","ЗАМ ГЕН ДИРА",null,"Мухамятов","ЗАМ ГЕН ДИРА"]
["(лицо, осуществляющее строительство)",null,null,null,null,null,null,null,"(исполнитель кратко)",null,null,"Холоднов","НАЧ ОСК",null,"Холоднов","НАЧ ОСК"]
["ГБУ «ЖИЛИЩНИК БАСМАННОГО РАЙОНА» ИНН 7701378636,  ОГРН 5137746116657, 105066, Москва Город, пер. 1-й Басманный, д. 6, телефон/факс: 8(495) 607-42-68"]
["(лицо, осуществляющего управление многоквартирным домом)",null,null,null,null,null,null,null,"Фамилия И.О.","Должность"]
["ООО «АС-ТЕХНОГРУПП», ОГРН 1197746599577, ИНН/КПП 7716941996/771601001, 127015, г. Москва, вн. тер. г. муниципальный округ Бутырский, ул. Новодмитровская, д. 5а, стр. 1, эт. 17, офис 1712 а"]
["(лицо, осуществляющее подготовку проектной документации)",null,null,null,null,null,null,null,"Фамилия И.О.","Должность"]
["Холоднов Г.В."]
["(Иные лицы)",null,null,null,null,null,null,null,"Фамилия И.О.","Должность"]
["Иные лица, учавствующие в освидетельствовании:"]
[null,"нет",null,null,null,null,null,null,"Фамилия И.О.","Должность"]
[1,"(дополнительные сведения)"]
[2,null,null,null,null,null,null,null,"Фамилия И.О.","Должность"]
[3," "]
[4,null,null,null,null,null,null,null,"Фамилия И.О.","Должность"]
[5]
["Представитель застройщика или заказчика (Фамилия И.О.)",null,null,null,null,null,null,"Реквизиты документа",null,"Должность"]
["Матвеев И.А.",null,null,null,null,null,null,"Не требуется",null,{"$f":"VLOOKUP(A22,$O$2:$P$20,2,0)","v":"Инженер СК ЦАО"}]
["Представитель лица осуществляющего строительство (Фамилия И.О.)",null,null,null,null,null,null,"Реквизиты документа",null,"Должность"]
["Холоднов Г.В.",null,null,null,null,null,null,"Не требуется",null,{"$f":"VLOOKUP(A24,$L$2:$M$20,2,0)","v":"Заместитель директора"}]
["Представитель лица осуществляющего строительство, выполневшее работы (Фамилия И.О.)",null,null,null,null,null,null,"Реквизиты документа",null,"Должность"]
["Зверева И.Л.",null,null,null,null,null,null,"Не требуется",null,{"$f":"VLOOKUP(A26,$L$2:$M$20,2,0)","v":"Заместитель директора по капитальному строительству"}]
["Основные сведения о предъявляемых к освидетельствованию работах",null,null,null,null,null,null,"Количество экз.",2]
["Объект капиталного строительства\n(в соответствии с договором)",null,null,null,null,null,null,"№ АКТА присвоенный",null,"Информация о проектной документации"]
[{"$f":"A2","v":"ФИРАМААААА"},null,null,null,null,null,null,{"$f":"IF(LEFTB($J$2)=\"з\",\"З-\",\"\")&SUBSTITUTE(TRIM(REPLACE(MID(SUBSTITUTE(TRIM(SUBSTITUTE($J$2,\"№\",)),\" \",REPT(\" \",99)),99,99)&RIGHTB(SUBSTITUTE(SUBSTITUTE($J$2,\"№\",),\" \",REPT(\" \",99)),99),49,99,)),\" \",\"-\")","v":"ПКР-003689-22"},null,"ПКР-003689-22"]
[null,null,null,null,null,null,null,null,null,null,null,null,"Старший мастер Гидротехнического цеха Братского участка"]
[null,null,null,null,null,null,null,null,null,null,null,null,"Старший мастер Гидротехнического цеха Братского участка"]
[null,null,null,null,null,null,null,null,null,null,null,null,"Старший мастер Гидротехнического цеха Братского участка"]
[null,null,null,null,null,null,null,null,null,null,null,null,"Старший мастер Гидротехнического цеха Братского участка"]
[null,null,null,null,null,null,null,null,null,null,null,null,"Старший мастер Гидротехнического цеха Братского участка"]
[null,null,null,null,null,null,null,null,null,null,null,null,"Старший мастер Гидротехнического цеха Братского участка"]
[null,null,null,null,null,null,null,null,null,null,null,null,"Старший мастер Гидротехнического цеха Братского участка"]
[null,null,null,null,null,null,null,null,null,null,null,null,"Старший мастер Гидротехнического цеха Братского участка"]
[null,null,null,null,null,null,null,null,null,null,null,null,"Старший мастер Гидротехнического цеха Братского участка"]
[null,null,null,null,null,null,null,null,null,null,null,null,"Старший мастер Гидротехнического цеха Братского участка"]
[null,null,null,null,null,null,null,null,null,null,null,null,"Старший мастер Гидротехнического цеха Братского участка"]
[null,null,null,null,null,null,null,null,null,null,null,null,"Старший мастер Гидротехнического цеха Братского участка"]
[null,null,null,null,null,null,null,null,null,null,null,null,"Старший мастер Гидротехнического цеха Братского участка"]
[null,null,null,null,null,null,null,null,null,null,null,null,"Старший мастер Гидротехнического цеха Братского участка"]
[null,null,null,null,null,null,null,null,null,null,null,null,"Старший мастер Гидротехнического цеха Братского участка"]
[null,null,null,null,null,null,null,null,null,null,null,null,"Старший мастер Гидротехнического цеха Братского участка"]
[null,null,null,null,null,null,null,null,null,null,null,null,"Старший мастер Гидротехнического цеха Братского участка"]
[null,null,null,null,null,null,null,null,null,null,null,null,"Старший мастер Гидротехнического цеха Братского участка"]
[null,null,null,null,null,null,null,null,null,null,null,null,"Старший мастер Гидротехнического цеха Братского участка"]
["№ п/п","№ акта","Дата составления акта","Предъявляемая к освидетельствованию работа\n(в соответствии с КС-2)","Разрешается производство \nследующих рабор","Примененные материалы","Приложения","Дата начала работ","Дата окончания работ","Информация о проектной документации"]
[1,{"$f":"IF(ISBLANK(D50),\" \",CONCATENATE($H$29,\"-\",A50))","v":"ПКР-003689-22-1"},{"$f":"IF(ISBLANK(I50),\" \",I50)","v":"2016-06-24"},"Ремонт лакокрасочного покрытия наружных поверхностей крышки турбины 18Г на первый слой.","Ремонт лакокрасочного покрытия наружных поверхностей крышки турбины 18Г на второй слой.","Нефрас, ветошь, отвердитель, растворитель Р-4, шпатлевка ЭП 0010.","N:\\Docs\\ГЭСР\\Папки подразделений\\ГЦ\\ФОТОГРАФИИ РАБОТ\\ГА-18\\, сертификаты (если есть)","2016-05-20","2016-06-24","ПКР-003689-22-АР"]
[2,{"$f":"IF(ISBLANK(D51),\" \",CONCATENATE($H$29,\"-\",A51))","v":"ПКР-003689-22-2"},{"$f":"IF(ISBLANK(I51),\" \",I51)","v":"2016-06-29"},"Ремонт лакокрасочного покрытия внутренних поверхностей крышки турбины 18Г на первый слой.","Ремонт лакокрасочного покрытия внутренних поверхностей крышки турбины 18Г на второй слой.","Нефрас, ветошь, отвердитель, растворитель Р-4, шпатлевка ЭП 0010.","N:\\Docs\\ГЭСР\\Папки подразделений\\ГЦ\\ФОТОГРАФИИ РАБОТ\\ГА-18\\, сертификаты (если есть)","2016-06-25","2016-06-29","ПКР-003689-22- АР"]
[3,"ПКР-003689-22-3"," ","ааа"]
[4," "," "]
[5," "," "]
[6," "," "]
[7," "," "]
[8," "," "]
[9," "," "]
[10," "," "]
[11," "," "]
[12," "," "]
[13," "," "]
[14," "," "]
[15," "," "]
[16," "," "]
[17," "," "]
[18," "," "]
[19," "," "]
[20," "," "]
[21," "," "]
[22," "," "]
[23," "," "]
[24," "," "]
[25," "," "]
[26," "," "]
[27," "," "]
[28," "," "]
[29," "," "]
[30," "," "]
[31," "," "]
[32," "," "]
[33," "," "]
[34," "," "]
[35," "," "]
[36," "," "]
[37," "," "]
[38," "," "]
[39," "," "]
[40," "," "]
[41," "," "]
[42," "," "]
[43," "," "]
[44," "," "]
[45," "," "]
[46," "," "]
[47," "," "]
[48," "," "]
[49," "," "]
[50," "," "]
[51," "," "]
[52," "," "]
[53," "," "]
[54," "," "]
[55," "," "]
[56," "," "]
[57," "," "]
[58," "," "]
[59," "," "]
[60," "," "]
[61," "," "]
[62," "," "]
[63," "," "]
[64," "," "]
[65," "," "]
[66,{"$f":"IF(ISBLANK(D115),\" \",CONCATENATE($H$29,\"-\",A115))","v":" "},{"$f":"IF(ISBLANK(I115),\" \",I115)","v":" "}]
[67," "," "]
[68," "," "]
[69," "," "]
[70," "," "]
[71," "," "]
[72," "," "]
[73," "," "]
[74," "," "]
[75," "," "]
[76," "," "]
[77," "," "]
[78," "," "]
[79," "," "]
[80," "," "]
[81," "," "]
[82," "," "]
[83," "," "]
[84," "," "]
[85," "," "]
[86," "," "]
[87," "," "]
[88," "," "]
[89," "," "]
[90," "," "]
[91," "," "]
[92," "," "]
[93," "," "]
[94," "," "]
[95," "," "]
[96," "," "]
[97," "," "]
[98," "," "]
[99," "," "]
[100," "," "]
[101," "," "]
[102," "," "]
[103," "," "]
[104," "," "]
[105," "," "]
[106," "," "]
[107," "," "]
[108," "," "]
[109," "," "]
[110," "," "]
[111," "," "]
[112," "," "]
[113," "," "]
[114," "," "]
[115," "," "]
[116," "," "]
[117," "," "]
[118," "," "]
[119," "," "]
[120," "," "]
[121," "," "]
[122," "," "]
[123," "," "]
[124," "," "]
[125," "," "]
[126," "," "]
[127," "," "]
[128," "," "]
[129," "," "]
[130,{"$f":"IF(ISBLANK(D179),\" \",CONCATENATE($H$29,\"-\",A179))","v":" "},{"$f":"IF(ISBLANK(I179),\" \",I179)","v":" "}]
[131," "," "]
[132," "," "]
[133," "," "]
[134," "," "]
[135," "," "]
[136," "," "]
[137," "," "]
[138," "," "]
[139," "," "]
[140," "," "]
[141," "," "]
[142," "," "]
[143," "," "]
[144," "," "]
[145," "," "]
[146," "," "]
[147," "," "]
[148," "," "]
[149," "," "]
[150," "," "]
[151," "," "]
[152," "," "]
[153," "," "]
[154," "," "]
[155," "," "]
[156," "," "]
[157," "," "]
[158," "," "]
[159," "," "]
[160," "," "]
[161," "," "]
[162," "," "]
[163," "," "]
[164," "," "]
[165," "," "]
[166," "," "]
[167," "," "]
[168," "," "]
[169," "," "]
[170," "," "]
[171," "," "]
[172," "," "]
[173," "," "]
[174," "," "]
[175," ",{"$f":"IF(ISBLANK(I224),\" \",I224)","v":" "}]
[176," "," "]
[177," "," "]
[178," "," "]
[179," "," "]
[180," "," "]
[181," "," "]
[182," "," "]
[183," "," "]
[184," "," "]
[185," "," "]
[186," "," "]
[187," "," "]
[188," "," "]
[189," "," "]
[190," "," "]
[191," "," "]
[192," "," "]
[193," "," "]
[194,{"$f":"IF(ISBLANK(D243),\" \",CONCATENATE($H$29,\"-\",A243))","v":" "}," "]
[195," "," "]
[196," "," "]
[197," "," "]
[198," "," "]
[199," "," "]
[200," "," "]

{"sheet":"ШАБЛОН","index":2,"n_rows":147,"n_cols":30,"rows_kept":147,"cut":false,"hidden":false,"merged":[[141,0,141,29],[142,0,142,29],[143,0,143,29],[144,0,144,29],[145,0,145,29],[146,0,146,29],[136,0,136,29],[137,0,137,29],[138,0,138,8],[138,9,138,29],[139,0,140,8],[139,9,139,29],[140,9,140,29],[131,0,131,24],[131,25,131,29],[132,0,132,29],[133,0,133,29],[134,0,134,29],[135,0,135,8],[135,9,135,29],[125,0,125,29],[126,0,126,29],[127,0,127,29],[128,0,128,29],[129,0,129,29],[130,0,130,29],[121,0,121,13],[121,14,121,29],[122,0,122,29],[123,0,123,29],[124,0,124,17],[124,18,124,29],[116,0,116,29],[117,0,117,4],[117,5,117,29],[118,0,118,29],[119,0,119,29],[120,0,120,29],[112,0,112,29],[113,0,113,8],[113,9,113,29],[114,0,114,29],[115,0,115,5],[115,6,115,9],[115,10,115,29],[107,0,107,29],[108,0,108,29],[109,0,109,15],[109,16,109,29],[110,0,110,29],[111,0,111,29],[102,0,102,29],[103,0,103,14],[103,15,103,29],[104,0,104,29],[105,0,105,29],[106,0,106,29],[99,0,99,29],[100,0,100,7],[100,13,100,16],[100,18,100,20],[101,0,101,7],[101,13,101,16],[101,18,101,20],[94,0,94,29],[95,0,95,4],[95,5,95,29],[96,0,96,29],[97,0,97,29],[98,0,98,29],[89,0,89,12],[89,13,89,29],[90,0,90,29],[91,0,91,29],[92,0,92,29],[93,0,93,29],[84,0,84,16],[84,17,84,29],[85,0,85,29],[86,0,86,29],[87,0,87,29],[88,0,88,29],[79,0,79,29],[80,0,80,18],[80,19,80,29],[81,0,81,29],[82,0,82,29],[83,0,83,29],[74,0,74,29],[75,0,75,29],[76,0,76,12],[76,13,76,29],[77,0,77,29],[78,0,78,29],[69,0,69,29],[70,0,70,29],[71,0,71,22],[71,23,71,29],[72,0,72,29],[73,0,73,29],[65,0,65,29],[66,0,66,29],[67,0,67,29],[68,0,68,8],[68,9,68,29],[59,0,59,29],[60,0,60,29],[61,0,61,3],[61,4,61,29],[62,0,62,29],[63,0,63,29],[64,0,64,29],[55,0,55,19],[55,20,55,29],[56,0,56,17],[56,18,56,29],[57,0,57,29],[58,0,58,29],[51,0,51,29],[52,0,52,13],[52,14,52,29],[53,0,53,29],[54,0,54,29],[46,0,46,29],[47,0,47,29],[48,0,48,29],[49,0,49,29],[50,1,50,6],[50,23,50,26],[50,28,50,29],[40,0,40,29],[41,0,41,29],[42,0,42,29],[43,0,43,29],[44,0,44,29],[45,0,45,29],[35,0,35,29],[36,0,36,29],[37,0,37,29],[38,0,38,29],[39,0,39,7],[39,8,39,29],[30,0,30,29],[31,0,31,19],[31,20,31,29],[32,0,32,29],[33,0,33,29],[34,0,34,29],[26,0,26,29],[27,0,27,29],[28,0,28,29],[29,0,29,29],[18,0,18,29],[19,0,19,29],[20,0,20,29],[21,0,21,29],[22,0,22,29],[23,0,23,12],[23,13,23,29],[13,0,13,11],[13,12,13,29],[14,0,14,29],[15,0,15,29],[16,0,16,29],[24,0,24,29],[25,0,25,29],[17,0,17,12],[17,13,17,29]]}
[]
[null,null,null,null,null,null,null,null,null,null,null,null,null,null,null,null,null,null,null,null,null,null,null,null,null,null,null,null,null," ПРИЛОЖЕНИЕ № 3"]
[null,null,null,null,null,null,null,null,null,null,null,null,null,null,null,null,null,null,null,null,null,null,null,null,null,null,null,null,null,"к Требованиям к составу и порядку ведения исполнительной "]
[null,null,null,null,null,null,null,null,null,null,null,null,null,null,null,null,null,null,null,null,null,null,null,null,null,null,null,null,null,"документации при строительстве, реконструкции, "]
[null,null,null,null,null,null,null,null,null,null,null,null,null,null,null,null,null,null,null,null,null,null,null,null,null,null,null,null,null,"капитальном ремонте объектов капитального строительства "]
[null,null,null,null,null,null,null,null,null,null,null,null,null,null,null,null,null,null,null,null,null,null,null,null,null,null,null,null,null,"и требования, предъявляемые к актам освидетельствования "]
[null,null,null,null,null,null,null,null,null,null,null,null,null,null,null,null,null,null,null,null,null,null,null,null,null,null,null,null,null,"работ, конструкций, участков сетей инженерно-"]
[null,null,null,null,null,null,null,null,null,null,null,null,null,null,null,null,null,null,null,null,null,null,null,null,null,null,null,null,null,"технического обеспечения, утвержденным "]
[null,null,null,null,null,null,null,null,null,null,null,null,null,null,null,null,null,null,null,null,null,null,null,null,null,null,null,null,null,"приказом Федеральной службы по экологическому, "]
[null,null,null,null,null,null,null,null,null,null,null,null,null,null,null,null,null,null,null,null,null,null,null,null,null,null,null,null,null,"технологическому и атомному надзору "]
[null,null,null,null,null,null,null,null,null,null,null,null,null,null,null,null,null,null,null,null,null,null,null,null,null,null,null,null,null,"от  26 декабря 2006 г. № 1128 "]
[null,null,null,null,null,null,null,null,null,null,null,null,null,null,null,null,null,null,null,null,null,null,null,null,null,null,null,null,null,"(в ред. Приказа Ростехнадзора от 26.10.2015 N 428)"]
[]
["Объект капитального строительства"]
[]
[]
["(наименование, почтовый или строительный адрес объекта капитального строительства)"]
["Застройщик или технический заказчик"]
["                                                                                                 (наименование, ОГРН, ИНН, номер и дата выдачи свидетельства "]
[]
["о допуске к видам работ по строительству, реконструкции, капитальному ремонту объектов капитальногостроительства, которые оказывают влияние на безопасность объектов капитального строительства, с указанием саморегулируемой организации, его выдавшей,"]
[]
["почтовые реквизиты, телефон/факс – для юридических лиц и индивидуальных предпринимателей;\nфамилия, имя, отчество, паспортные данные, место проживания, телефон/факс – для физических лиц)\n"]
["Лицо, осуществляющее строительство"]
["                                                                                                                                          (наименование, ОГРН, ИНН, номер и дата выдачи свидетельства "]
[]
["о допуске к видам работ по строительству, реконструкции, капитальному ремонту объектов капитальногостроительства, которые оказывают влияние на безопасность объектов капитального строительства, с указанием саморегулируемой организации, его выдавшей,"]
[]
["почтовые реквизиты, телефон/факс – для юридических лиц и индивидуальных предпринимателей;\nфамилия, имя, отчество, паспортные данные, место проживания, телефон/факс – для физических лиц)"]
[]
[]
["Лицо, осуществляющего управление многоквартирным домом"]
[]
["(наименование, ОГРН, ИНН, номер и дата выдачи свидетельства о допуске к видам работ по строительству, реконструкции, капитальному ремонту объектов капитальногостроительства,  "]
[]
["которые оказывают влияние на безопасность объектов капитального строительства, с указанием саморегулируемой организации, его выдавшей,"]
[]
["почтовые реквизиты, телефон/факс – для юридических лиц и индивидуальных предпринимателей;\nфамилия, имя, отчество, паспортные данные, место проживания, телефон/факс – для физических лиц)"]
["Лицо, осуществляющее подготовку проектной документации"]
[]
["                                                                       (наименование, ОГРН, ИНН, номер и дата выдачи свидетельства "]
[]
["о допуске к видам работ по строительству, реконструкции, капитальному ремонту объектов капитальногостроительства, которые оказывают влияние на безопасность объектов капитального строительства, с указанием саморегулируемой организации, его выдавшей,"]
[]
["почтовые реквизиты, телефон/факс – для юридических лиц и индивидуальных предпринимателей;\n"]
[]
["фамилия, имя, отчество, паспортные данные, место проживания, телефон/факс – для физических лиц)"]
["АКТ"]
["освидетельствования скрытых работ "]
[]
["№",null,null,null,null,null,null,null,null,null,null,null,null,null,null,null,null,null,null,"«",{"$f":"K102","v":0},"»   ",null,{"$f":"N102","v":0},null,null,null,null,{"$f":"CONCATENATE(S102,\" г.\")","v":" г."}]
[]
["Представитель застройщика или заказчика"]
[]
["(должность, фамилия, инициалы, реквизиты документа о представительстве)"]
[]
["Представитель лица, осуществляющего строительство"]
[]
[]
["(должность, фамилия, инициалы, реквизиты документа о представительстве)"]
["Представитель лица, осуществляющего строительство, по вопросам строительного"]
["контроля"]
[]
["(должность, фамилия, инициалы, реквизиты документа о представительстве)"]
["Представитель лица, осуществляющего подготовку проектной документации"]
[]
["(должность, фамилия, инициалы, реквизиты документа о представительстве)"]
["Представитель лица, осуществляющего управление многоквартирным домом"]
[]
[]
[]
["а также иные представители лиц, участвующих в освидетельствовании:"]
[]
[]
[]
["(наименование, должность, фамилия, инициалы, реквизиты документа о представительстве)"]
["произвели осмотр работ, выполненных"]
[]
["(наименование лица, осуществляющего строительство, выполнившего работы)"]
["и составили настоящий акт о нижеследующем:"]
["1. К освидетельствованию предъявлены следующие работы"]
[]
[]
["(наименование скрытых работ)"]
["2. Работы выполнены по проектной документации"]
[]
["(номер, другие реквизиты чертежа, наименование проектной документации,"]
[]
["сведения о лицах, осуществляющих подготовку раздела  проектной документации)"]
["3. При выполнении работ применены"]
["                                                                                                                                           (наименование строительных материалов,"]
[]
[]
["(изделий) со ссылкой на сертификаты или другие документы, подтверждающие качество)"]
["4. Предъявлены документы, подтверждающие соответствие работ предъявляемым к ним"]
["требованиям:"]
[]
["(исполнительные схемы и чертежи, результаты экспертиз, обследований, лабораторных и иных"]
[]
["испытаний выполненных работ, проведенных в процессе строительного контроля.)"]
["5. Даты:     начала работ:",null,null,null,null,null,null,null,null,"«",null,"»      "]
["окончания работ:",null,null,null,null,null,null,null,null,"«",null,"»      "]
[]
["6. Работы выполнены в соответствии с"]
["                                                                                   (указываются наименование, статьи "]
[{"$f":"R85","v":0}]
["(пункты) технического регламента (норм и правил), иных нормативных правовых актов,"]
[{"$f":"A86","v":0}]
["разделы проектной документации)"]
["7. Разрешается производство последующих работ:"]
[]
["(наименование работ,  конструкций, участков сетей инженерно-технического обеспечения)"]
[]
["Дополнительные сведения"]
["."]
["Акт составлен в",null,null,null,null,null,{"$f":"'Основные параметры'!I27","v":2},null,null,null,"экземплярах."]
[]
["Приложения:"]
[]
[]
[]
["Представитель застройщика или заказчика",null,null,null,null,null,null,null,null,null,null,null,null,null,{"$f":"O53","v":0}]
[{"$f":"A54","v":0}]
["(должность, фамилия, инициалы, подпись)"]
["Представитель лица, осуществляющего строительство",null,null,null,null,null,null,null,null,null,null,null,null,null,null,null,null,null,{"$f":"S57","v":0}]
[{"$f":"A58","v":0}]
["(должность, фамилия, инициалы, подпись)"]
["Представитель лица, осуществляющего строительство, по вопросам строительного контроля"]
[{"$f":"E62","v":0}]
[{"$f":"A63","v":0}]
["(должность, фамилия, инициалы, подпись)"]
["Представитель лица, осуществляющего подготовку проектной документации",null,null,null,null,null,null,null,null,null,null,null,null,null,null,null,null,null,null,null,null,null,null,null,null,{"$f":"Z65","v":0}]
[{"$f":"A66","v":0}]
["(должность, фамилия, инициалы, подпись)"]
["Представитель лица, осуществляющего строительство, выполнившего работы, подлежа"]
["щие освидетельствованию",null,null,null,null,null,null,null,null,{"$f":"J69","v":0}]
[{"$f":"A70","v":0}]
[{"$f":"A71","v":0}]
[null,null,null,null,null,null,null,null,null,"                 (должность, фамилия, инициалы, подпись)"]
["Представители иных лиц:",null,null,null,null,null,null,null,null,{"$f":"X72","v":0}]
[null,null,null,null,null,null,null,null,null,"                 (должность, фамилия, инициалы, подпись)"]
[{"$f":"A73","v":0}]
["                                                                                            (должность, фамилия, инициалы, подпись)"]
[{"$f":"A74","v":0}]
["(должность, фамилия, инициалы, подпись)"]
[{"$f":"A75","v":0}]
["(должность, фамилия, инициалы, подпись)"]